bitfinex/quotes_BTCUSD_20240629
["timestamp","ask_amount","ask_price","bid_price","bid_amount"]
[1719664275393,0.00084,61224.0,61223.0,0.8143159]
[1719664275819,0.00084,61224.0,61223.0,0.8203159]
[1719664276039,0.00084,61224.0,61223.0,0.9483505]
[1719664276469,0.00084,61224.0,61223.0,0.7183505]
[1719664276859,0.00084,61224.0,61223.0,0.9483505]
[1719664281119,0.00084,61224.0,61223.0,0.9383505]
[1719664281521,0.00084,61224.0,61223.0,0.7183505]
[1719664281922,0.01284879,61252.0,61233.0,0.2]
[1719664282129,0.0763,61234.0,61233.0,0.2]
[1719664282857,3.468945,61234.0,61233.0,0.2]
[1719664283063,3.468945,61234.0,61233.0,0.1974757]
[1719664283271,3.63128398,61234.0,61233.0,0.19415008]
[1719664283481,3.63528398,61234.0,61233.0,0.001]
[1719664284317,3.63528398,61234.0,61233.0,0.002]
[1719664284318,3.79761769,61234.0,61233.0,0.002]
[1719664284523,3.79761769,61234.0,61221.0,0.0492901]
[1719664284730,3.79761769,61234.0,61225.0,0.19415008]
[1719664284731,3.55498398,61233.0,61225.0,0.19415008]
[1719664284905,0.0763,61226.0,61225.0,0.19415008]
[1719664285138,3.64188398,61226.0,61225.0,0.19415008]
[1719664285345,0.24923898,61226.0,61225.0,0.19415008]
[1719664285492,0.0106,61225.0,61220.0,0.19415008]
[1719664285694,0.0869,61221.0,61220.0,0.19415008]
[1719664285901,3.64188398,61221.0,61220.0,0.19415008]
[1719664287573,2.75871198,61221.0,61220.0,0.19415008]
[1719664288306,2.76671198,61221.0,61220.0,0.19415008]
[1719664289350,2.76671198,61221.0,61219.0,0.19415008]
[1719664289668,0.0106,61219.0,61218.0,0.19415008]
[1719664289898,3.64188398,61219.0,61218.0,0.19415008]
[1719664290285,3.007712,61219.0,61218.0,0.19415008]
[1719664290490,2.86662,61219.0,61218.0,0.19415008]
[1719664291652,2.87262,61219.0,61218.0,0.19415008]
[1719664293442,2.87262,61219.0,61216.0,0.19415008]
[1719664293646,0.006,61219.0,61218.0,0.19415008]
[1719664293845,0.24463898,61219.0,61218.0,0.19415008]
[1719664294069,0.24463898,61219.0,61218.0,0.20611221]
[1719664294357,0.24263898,61219.0,61218.0,0.20611221]
[1719664294558,3.63528398,61219.0,61218.0,0.20611221]
[1719664294766,3.63728398,61219.0,61218.0,0.20611221]
[1719664295079,3.63528398,61219.0,61218.0,0.19415008]
[1719664295454,3.63728398,61219.0,61218.0,0.19415008]
[1719664298909,3.63728398,61219.0,61218.0,0.19410367]
[1719664299315,3.63728398,61219.0,61218.0,0.19410367]
[1719664299707,3.63728398,61219.0,61217.0,0.19410367]
[1719664300035,3.63128398,61218.0,61217.0,0.19410367]
[1719664301788,3.63228398,61218.0,61217.0,0.19410367]
[1719664302475,3.79661769,61218.0,61216.0,0.19410367]
[1719664302683,3.392645,61217.0,61216.0,0.19410367]
[1719664302886,3.55498398,61217.0,61216.0,0.19410367]
[1719664303474,3.55498398,61217.0,61215.0,0.19410367]
[1719664303698,3.55498398,61217.0,61211.0,0.000924]
[1719664303699,0.16233371,61218.0,61216.0,0.19410367]
[1719664303842,0.23963898,61217.0,61216.0,0.19410367]
[1719664304043,0.23963898,61217.0,61216.0,0.20607427]
[1719664304378,3.63228398,61217.0,61216.0,0.19410367]
[1719664305768,3.65238398,61217.0,61216.0,0.19410367]
[1719664306557,3.6749525,61217.0,61213.0,0.19410367]
[1719664306935,0.0763,61214.0,61213.0,0.19410367]
[1719664307139,3.63128398,61214.0,61213.0,0.19410367]
[1719664307906,3.63128398,61214.0,61213.0,0.19510367]
[1719664308311,2.156446,61214.0,61213.0,0.40380367]
[1719664308749,2.158446,61214.0,61213.0,0.41679118]
[1719664309161,2.156446,61214.0,61213.0,0.41579118]
[1719664309380,2.156446,61214.0,61213.0,0.41679118]
[1719664309582,2.156446,61214.0,61213.0,0.41579118]
[1719664309907,2.162446,61214.0,61213.0,0.41679118]
[1719664310263,2.12178,61214.0,61213.0,0.41679118]
[1719664310687,2.12378,61214.0,61213.0,0.40580367]
[1719664311760,2.12378,61214.0,61213.0,0.40573006]
[1719664312148,2.12378,61214.0,61213.0,0.41771757]
[1719664313558,1.691058,61214.0,61213.0,0.41771757]
[1719664313886,0.0843,61214.0,61213.0,0.41771757]
[1719664314454,2.223477,61214.0,61213.0,0.41771757]
[1719664314792,2.066921,61214.0,61213.0,0.40473006]
[1719664315236,2.068921,61214.0,61213.0,0.41771899]
[1719664315472,1.641654,61214.0,61213.0,0.41771899]
[1719664315670,1.473618,61214.0,61213.0,0.63671899]
[1719664315799,1.467618,61214.0,61213.0,0.63571899]
[1719664316001,1.469618,61214.0,61213.0,0.63571899]
[1719664316223,1.474618,61214.0,61213.0,0.63571899]
[1719664317119,1.474618,61214.0,61213.0,0.20601899]
[1719664317535,1.472618,61214.0,61213.0,0.20601899]
[1719664317719,1.474618,61214.0,61213.0,0.20601899]
[1719664323394,1.474618,61214.0,61213.0,0.42321899]
[1719664323599,1.174516,61214.0,61213.0,0.64321899]
[1719664324670,0.609014,61214.0,61213.0,0.64321899]
[1719664325214,0.363074,61214.0,61213.0,0.62321899]
[1719664325430,0.363074,61214.0,61213.0,0.84321899]
[1719664325838,0.361074,61214.0,61213.0,0.84321899]
[1719664326326,0.005,61214.0,61213.0,0.62321899]
[1719664326520,0.0833,61214.0,61213.0,0.62321899]
[1719664326741,0.0833,61214.0,61213.0,0.84321899]
[1719664327119,0.007,61214.0,61213.0,0.85321899]
[1719664327319,0.47296994,61239.0,61226.0,0.2]
[1719664327320,0.0201,61238.0,61226.0,0.2]
[1719664327527,0.0763,61227.0,61226.0,0.2]
[1719664327736,3.468945,61227.0,61226.0,0.2]
[1719664328929,3.470945,61227.0,61226.0,0.201]
[1719664329154,3.470945,61227.0,61226.0,0.001]
[1719664329760,3.470945,61227.0,61226.0,0.002]
[1719664338842,3.14852,61227.0,61226.0,0.002]
[1719664339014,3.22482,61227.0,61226.0,0.002]
[1719664352339,3.22482,61227.0,61226.0,0.00195342]
[1719664360220,3.22482,61227.0,61226.0,0.01430214]
[1719664360453,3.22482,61227.0,61226.0,0.00195342]
[1719664361217,3.22482,61227.0,61226.0,0.01430214]
[1719664361418,3.22482,61227.0,61226.0,0.00195342]
[1719664362839,3.22482,61227.0,61226.0,0.01430214]
[1719664363063,3.22482,61227.0,61226.0,0.00195342]
[1719664363269,3.22482,61227.0,61226.0,0.01430214]
[1719664363397,3.22482,61227.0,61226.0,0.00195342]
[1719664363600,3.22482,61227.0,61226.0,0.01430214]
[1719664363806,3.22482,61227.0,61224.0,0.11256238]
[1719664364137,0.0783,61227.0,61225.0,0.01235295]
[1719664364330,3.14652,61226.0,61225.0,0.01235295]
[1719664364901,3.14652,61226.0,61224.0,0.11113557]
[1719664365101,3.14652,61226.0,61224.0,0.11213557]
[1719664365705,3.14652,61226.0,61225.0,0.01235295]
[1719664366783,3.14752,61226.0,61225.0,0.01235295]
[1719664367186,3.14752,61226.0,61225.0,0.01335295]
[1719664367574,3.14752,61226.0,61225.0,0.001]
[1719664374081,3.30985898,61226.0,61223.0,0.19003006]
[1719664374377,0.0763,61224.0,61223.0,0.19003006]
[1719664374587,0.23863898,61224.0,61223.0,0.19003006]
[1719664374788,3.38515898,61224.0,61223.0,0.19003006]
[1719664374982,0.23863898,61224.0,61223.0,0.19003006]
[1719664375386,3.38515898,61224.0,61223.0,0.20239148]
[1719664375583,3.38515898,61224.0,61223.0,0.19003006]
[1719664375783,3.38515898,61224.0,61223.0,0.19103006]
[1719664375784,3.42678802,61224.0,61223.0,0.19103006]
[1719664376025,3.38515898,61224.0,61223.0,0.19003006]
[1719664376223,3.38515898,61224.0,61223.0,0.30913006]
[1719664376396,3.38515898,61224.0,61223.0,0.40553006]
[1719664377587,3.38615898,61224.0,61223.0,0.40053006]
[1719664379947,3.38615898,61224.0,61223.0,0.2155]
[1719664380170,3.38615898,61224.0,61223.0,0.40053006]
[1719664381120,3.38615898,61224.0,61223.0,0.39553006]
[1719664383125,3.38615898,61224.0,61223.0,0.59553006]
[1719664385151,3.38615898,61224.0,61223.0,0.39553006]
[1719664387786,3.38615898,61224.0,61223.0,0.2105]
[1719664388003,3.38615898,61224.0,61223.0,0.39553006]
[1719664390176,3.48358534,61224.0,61223.0,0.39553006]
[1719664391623,3.38615898,61224.0,61223.0,0.39553006]
[1719664392854,3.38615898,61224.0,61223.0,0.59363431]
[1719664393080,3.38615898,61224.0,61223.0,0.50623006]
[1719664393081,1.64979,61224.0,61223.0,0.50623006]
[1719664393297,1.72609,61224.0,61223.0,0.51859207]
[1719664393643,1.435725,61224.0,61223.0,0.71859207]
[1719664395089,1.436725,61224.0,61223.0,0.71859207]
[1719664395294,1.435725,61224.0,61223.0,0.71859207]
[1719664395499,1.435725,61224.0,61223.0,0.70623006]
[1719664395886,1.435725,61224.0,61223.0,0.84219207]
[1719664396127,1.434725,61224.0,61223.0,0.84219207]
[1719664396534,1.434725,61224.0,61223.0,0.82983006]
[1719664396737,1.435725,61224.0,61223.0,0.82983006]
[1719664396947,0.0783,61224.0,61223.0,0.84219207]
[1719664397147,0.0783,61224.0,61223.0,0.82983006]
[1719664397354,1.756314,61224.0,61223.0,0.84219207]
[1719664397555,0.0773,61224.0,61223.0,0.84219207]
[1719664397684,2.277218,61224.0,61223.0,0.84219207]
[1719664397893,2.317314,61224.0,61223.0,0.82983006]
[1719664398110,2.277218,61224.0,61223.0,0.84219141]
[1719664398829,2.277218,61224.0,61223.0,0.82219141]
[1719664399027,2.277218,61224.0,61223.0,0.84219141]
[1719664399230,2.16074,61224.0,61223.0,0.84219141]
[1719664399605,2.15974,61224.0,61223.0,0.82983006]
[1719664400011,2.15974,61224.0,61223.0,0.84219141]
[1719664400204,2.16074,61224.0,61223.0,0.84219141]
[1719664400606,2.16074,61224.0,61223.0,0.82983006]
[1719664401069,2.16074,61224.0,61223.0,0.84219141]
[1719664402416,2.16074,61224.0,61223.0,0.62219141]
[1719664402619,2.16074,61224.0,61223.0,0.42219141]
[1719664405507,2.16074,61224.0,61223.0,0.19739141]
[1719664405711,2.16074,61224.0,61223.0,0.42219141]
[1719664405925,2.16074,61224.0,61223.0,0.40983006]
[1719664406230,2.16074,61224.0,61223.0,0.42211906]
[1719664407061,1.85606843,61224.0,61223.0,0.42211906]
[1719664407269,1.93236843,61224.0,61223.0,0.42211906]
[1719664407605,1.93236843,61224.0,61223.0,0.19731906]
[1719664407806,1.93236843,61224.0,61223.0,0.18503006]
[1719664408236,1.93236843,61224.0,61223.0,0.19731906]
[1719664409248,1.85606843,61224.0,61223.0,0.41731906]
[1719664409474,1.93236843,61224.0,61223.0,0.19731906]
[1719664411115,1.93236843,61224.0,61223.0,0.41731906]
[1719664412656,1.93236843,61224.0,61223.0,0.39731906]
[1719664413684,1.93236843,61224.0,61223.0,0.212289]
[1719664413887,1.93236843,61224.0,61223.0,0.39731906]
[1719664419777,1.85606843,61224.0,61223.0,0.79622252]
[1719664419980,0.002,61224.0,61223.0,0.93022252]
[1719664420844,0.001,61224.0,61223.0,0.93022252]
[1719664421050,0.00084,61239.0,61223.0,0.70862252]
[1719664421051,0.0763,61226.0,61223.0,0.70862252]
[1719664421217,0.0763,61226.0,61225.0,0.18503006]
[1719664421417,0.0763,61226.0,61225.0,0.62663006]
[1719664421624,0.0763,61226.0,61225.0,0.63891059]
[1719664423154,0.0763,61226.0,61225.0,0.64491059]
[1719664423580,0.0763,61226.0,61225.0,0.63891059]
[1719664423797,0.0763,61226.0,61225.0,0.85291059]
[1719664427933,0.0763,61226.0,61225.0,0.84810806]
[1719664438296,0.0763,61226.0,61225.0,0.84903206]
[1719664438709,0.07714,61226.0,61225.0,0.84903206]
[1719664440315,0.07714,61226.0,61225.0,0.75143206]
[1719664441406,2.022515,61226.0,61225.0,0.75143206]
[1719664441988,2.022515,61226.0,61225.0,0.40743206]
[1719664442195,2.022515,61226.0,61225.0,0.20743206]
[1719664442196,2.129264,61226.0,61225.0,0.20743206]
[1719664442391,2.200854,61226.0,61225.0,0.20743206]
[1719664442591,2.200854,61226.0,61225.0,0.19515153]
[1719664442815,2.200854,61226.0,61225.0,0.20572437]
[1719664448541,2.171954,61226.0,61225.0,0.42572437]
[1719664449303,1.89288123,61226.0,61225.0,0.42572437]
[1719664449535,0.0763,61226.0,61225.0,0.42572437]
[1719664449742,2.384157,61226.0,61225.0,0.41515153]
[1719664449944,2.384157,61226.0,61225.0,0.39515153]
[1719664450189,2.384157,61226.0,61225.0,0.19515153]
[1719664450830,2.54649598,61226.0,61225.0,0.0254989]
[1719664451057,2.58479598,61226.0,61225.0,0.0254989]
[1719664451319,2.58479598,61226.0,61225.0,0.014924]
[1719664451514,2.58479598,61226.0,61225.0,0.000924]
[1719664451923,2.58679598,61226.0,61225.0,0.002924]
[1719664452313,2.58679598,61226.0,61225.0,0.001924]
[1719664452510,2.58579598,61226.0,61225.0,0.001924]
[1719664452719,2.58679598,61226.0,61225.0,0.002924]
[1719664453981,2.58579598,61226.0,61225.0,0.001924]
[1719664454384,2.58879598,61226.0,61225.0,0.002924]
[1719664456828,2.47419598,61226.0,61225.0,0.002924]
[1719664457022,2.55049598,61226.0,61225.0,0.002924]
[1719664457274,2.55049598,61226.0,61225.0,0.01349995]
[1719664457598,2.54749598,61226.0,61225.0,0.01249995]
[1719664457940,2.54749598,61226.0,61225.0,0.001924]
[1719664458155,2.54949598,61226.0,61225.0,0.002924]
[1719664458562,2.54749598,61226.0,61225.0,0.001924]
[1719664458802,2.54949598,61226.0,61225.0,0.01349995]
[1719664458999,2.54949598,61226.0,61225.0,0.002924]
[1719664459249,2.54949598,61226.0,61225.0,0.01349995]
[1719664459368,2.54849598,61226.0,61225.0,0.001924]
[1719664459564,2.55049598,61226.0,61225.0,0.01349995]
[1719664460633,2.54849598,61226.0,61225.0,0.01249995]
[1719664461044,2.54849598,61226.0,61225.0,0.001924]
[1719664461501,2.54849598,61226.0,61225.0,0.01249995]
[1719664462124,2.55049598,61226.0,61225.0,0.01349995]
[1719664462430,2.55049598,61226.0,61225.0,0.01157595]
[1719664464633,2.26645219,61226.0,61225.0,0.01157595]
[1719664472812,2.67481198,61226.0,61225.0,0.01157595]
[1719664473191,2.67481198,61226.0,61225.0,0.01249995]
[1719664473537,2.67565198,61226.0,61225.0,0.01249995]
[1719664478105,2.213547,61226.0,61225.0,0.22959995]
[1719664478250,2.213547,61226.0,61225.0,0.44959995]
[1719664478449,2.213547,61226.0,61225.0,0.22959995]
[1719664479089,2.211547,61226.0,61225.0,0.22859995]
[1719664479295,2.211547,61226.0,61225.0,0.22959995]
[1719664479514,2.213547,61226.0,61225.0,0.22959995]
[1719664479956,2.211547,61226.0,61225.0,0.22959995]
[1719664480309,2.214547,61226.0,61225.0,0.23059995]
[1719664482091,2.212547,61226.0,61225.0,0.22959995]
[1719664482832,2.212547,61226.0,61225.0,0.23059995]
[1719664483036,2.211547,61226.0,61225.0,0.22959995]
[1719664483460,2.514313,61226.0,61225.0,0.23059995]
[1719664483662,0.08214,61226.0,61225.0,0.23059995]
[1719664483902,2.514313,61226.0,61225.0,0.23059995]
[1719664486464,2.512313,61226.0,61225.0,0.22959995]
[1719664486667,2.509313,61226.0,61225.0,0.22859995]
[1719664487120,2.512313,61226.0,61225.0,0.22959995]
[1719664488039,2.514313,61226.0,61225.0,0.23059995]
[1719664493421,2.514313,61226.0,61225.0,0.23055138]
[1719664494456,0.08214,61226.0,61225.0,0.23055138]
[1719664494981,2.253803,61227.0,61225.0,0.23055138]
[1719664495188,2.330103,61226.0,61225.0,0.23055138]
[1719664495335,2.330103,61226.0,61225.0,0.01345138]
[1719664495923,2.330103,61226.0,61225.0,0.01245138]
[1719664496259,2.330103,61226.0,61225.0,0.01345138]
[1719664496677,2.330103,61226.0,61225.0,0.01245138]
[1719664496860,2.330103,61226.0,61225.0,0.01345138]
[1719664497397,2.330103,61226.0,61225.0,0.01245138]
[1719664498042,2.330103,61226.0,61225.0,0.01345138]
[1719664500497,2.31792798,61226.0,61225.0,0.01345138]
[1719664500922,2.31792798,61226.0,61214.0,0.22937669]
[1719664500923,2.48026169,61226.0,61214.0,0.22937669]
[1719664501123,0.0763,61215.0,61214.0,0.22937669]
[1719664501334,2.113989,61215.0,61214.0,0.22937669]
[1719664501499,2.113989,61215.0,61214.0,0.18022753]
[1719664502204,2.113989,61215.0,61214.0,0.18122753]
[1719664502629,2.113989,61215.0,61214.0,0.18022753]
[1719664503354,2.113989,61215.0,61214.0,0.18122753]
[1719664505355,0.0763,61215.0,61214.0,0.18122753]
[1719664505741,2.113989,61215.0,61214.0,0.18122753]
[1719664506032,2.113989,61215.0,61214.0,0.18215153]
[1719664506244,2.113989,61215.0,61214.0,0.1801599]
[1719664511486,2.113989,61215.0,61214.0,0.4001599]
[1719664512358,2.113989,61215.0,61214.0,0.5169599]
[1719664513263,2.037689,61215.0,61214.0,0.52943134]
[1719664513461,1.38995834,61215.0,61214.0,0.62763134]
[1719664513958,1.575844,61215.0,61214.0,0.62763134]
[1719664516253,1.499544,61215.0,61214.0,0.82763134]
[1719664516413,1.575844,61215.0,61214.0,0.82763134]
[1719664521427,1.575844,61215.0,61214.0,0.40763134]
[1719664521630,1.575844,61215.0,61214.0,0.62763134]
[1719664525267,1.575844,61215.0,61214.0,0.19263134]
[1719664527401,1.847573,61215.0,61214.0,0.19263134]
[1719664527605,0.0763,61215.0,61214.0,0.19263134]
[1719664528221,1.847573,61215.0,61214.0,0.19263134]
[1719664528439,1.847573,61215.0,61214.0,0.1801599]
[1719664528837,1.847573,61215.0,61214.0,0.19263333]
[1719664529448,1.847573,61215.0,61214.0,0.41263333]
[1719664529648,1.847573,61215.0,61214.0,0.19263333]
[1719664530001,1.847573,61215.0,61214.0,0.41263333]
[1719664530334,1.847573,61215.0,61214.0,0.19263333]
[1719664530692,1.847573,61215.0,61214.0,0.41263333]
[1719664534324,1.771273,61215.0,61214.0,0.52993333]
[1719664534535,0.0449,61224.0,61220.0,0.0991]
[1719664534536,1.771273,61223.0,61220.0,0.0991]
[1719664534774,0.0763,61221.0,61220.0,0.2164]
[1719664535010,2.00991198,61221.0,61220.0,0.2164]
[1719664535942,2.00991198,61221.0,61220.0,0.1183]
[1719664536419,2.01691198,61221.0,61220.0,0.1193]
[1719664536998,2.01691198,61221.0,61220.0,0.1183]
[1719664537206,1.94061198,61221.0,61220.0,0.1183]
[1719664537379,2.02391198,61221.0,61220.0,0.1193]
[1719664539076,2.02475198,61221.0,61220.0,0.1193]
[1719664540283,1.862413,61221.0,61220.0,0.002]
[1719664544004,1.862413,61221.0,61220.0,0.01280506]
[1719664551552,1.862413,61221.0,61220.0,0.11270506]
[1719664551755,1.862413,61221.0,61220.0,0.23870506]
[1719664551952,1.8599772,61221.0,61220.0,0.23870506]
[1719664558694,1.8599772,61221.0,61220.0,0.01280506]
[1719664558903,1.8599772,61221.0,61220.0,0.002]
[1719664561833,1.8599772,61221.0,61220.0,0.01280506]
[1719664562040,1.8599772,61221.0,61220.0,0.002]
[1719664562571,1.8599772,61221.0,61220.0,0.01280493]
[1719664562722,0.0887042,61221.0,61220.0,0.002]
[1719664562926,0.0887042,61221.0,61220.0,0.01280493]
[1719664563369,1.8599772,61221.0,61220.0,0.01280493]
[1719664567484,1.8599772,61221.0,61220.0,0.00648658]
[1719664567687,1.8599772,61221.0,61220.0,0.01080493]
[1719664567912,1.8599772,61221.0,61218.0,0.2259]
[1719664568224,1.771273,61220.0,61219.0,0.0105912]
[1719664568555,1.771273,61220.0,61218.0,0.2259]
[1719664568769,1.771273,61220.0,61219.0,0.0105912]
[1719664569095,1.771273,61220.0,61218.0,0.2259]
[1719664569297,1.771273,61220.0,61219.0,0.0105912]
[1719664569503,1.777273,61220.0,61219.0,0.0115912]
[1719664569714,1.777273,61220.0,61219.0,0.001]
[1719664569910,1.777273,61220.0,61219.0,0.0115912]
[1719664570111,1.782273,61220.0,61219.0,0.001]
[1719664570312,1.782273,61220.0,61219.0,0.0115912]
[1719664570518,1.782273,61220.0,61219.0,0.001]
[1719664571730,1.782273,61220.0,61219.0,0.0125152]
[1719664572179,1.783113,61220.0,61219.0,0.0125152]
[1719664575589,1.94544671,61220.0,61219.0,0.0125152]
[1719664575825,1.94544671,61220.0,61219.0,0.001924]
[1719664576019,2.10778569,61220.0,61219.0,0.001924]
[1719664577527,2.18348569,61220.0,61219.0,0.001924]
[1719664578336,2.18348569,61220.0,61219.0,0.00037649]
[1719664579765,2.02115198,61220.0,61219.0,0.00037649]
[1719664579966,1.94545198,61220.0,61219.0,0.00037649]
[1719664580386,1.94545198,61220.0,61219.0,0.01096769]
[1719664588786,1.783113,61220.0,61219.0,0.01096769]
[1719664588952,1.859413,61220.0,61219.0,0.23706769]
[1719664591644,1.859413,61220.0,61219.0,0.43706769]
[1719664591826,1.859413,61220.0,61219.0,0.23706769]
[1719664594941,1.859413,61220.0,61219.0,0.43706769]
[1719664597416,1.859413,61220.0,61219.0,0.45706769]
[1719664598240,1.859413,61220.0,61219.0,0.23706769]
[1719664598648,1.783113,61220.0,61219.0,0.45706769]
[1719664598849,1.859413,61220.0,61219.0,0.23706769]
[1719664599054,1.859413,61220.0,61219.0,0.45706769]
[1719664599268,1.859413,61220.0,61219.0,0.23706769]
[1719664599479,1.859413,61220.0,61219.0,0.45706769]
[1719664599865,1.536236,61220.0,61219.0,0.43706769]
[1719664600007,1.536236,61220.0,61219.0,0.23706769]
[1719664600214,1.536236,61220.0,61219.0,0.45706769]
[1719664603322,1.536236,61220.0,61219.0,0.23706769]
[1719664605303,1.537076,61220.0,61219.0,0.23706769]
[1719664615082,1.537076,61220.0,61219.0,0.23464007]
[1719664620720,1.537076,61220.0,61208.0,0.04358169]
[1719664620721,0.0207641,61218.0,61208.0,0.04358169]
[1719664620919,0.0716,61219.0,61209.0,0.221]
[1719664620920,1.62227498,61217.0,61209.0,0.221]
[1719664621121,0.0763,61210.0,61209.0,0.221]
[1719664622152,1.459936,61211.0,61209.0,0.221]
[1719664622318,1.536236,61210.0,61209.0,0.221]
[1719664622743,1.536236,61210.0,61209.0,0.23318579]
[1719664623369,1.536236,61210.0,61209.0,0.45418579]
[1719664623715,1.536236,61210.0,61209.0,0.45218579]
[1719664623921,1.544236,61210.0,61209.0,0.45318579]
[1719664624541,1.536236,61210.0,61209.0,0.45218579]
[1719664624744,1.536236,61210.0,61209.0,0.441]
[1719664624946,1.536236,61210.0,61209.0,0.45218579]
[1719664625579,0.750827,61210.0,61209.0,0.45218579]
[1719664626822,0.755827,61210.0,61209.0,0.45218579]
[1719664627053,0.760827,61210.0,61209.0,0.45218579]
[1719664627262,0.755827,61210.0,61209.0,0.23218579]
[1719664627434,0.750827,61210.0,61209.0,0.23218579]
[1719664627633,0.754827,61210.0,61209.0,0.23218579]
[1719664627869,0.757827,61210.0,61209.0,0.23218579]
[1719664630483,0.0833,61210.0,61209.0,0.23218579]
[1719664630683,1.543236,61210.0,61209.0,0.23218579]
[1719664630880,1.543236,61210.0,61209.0,0.221]
[1719664631183,1.543236,61210.0,61209.0,0.441]
[1719664631502,1.543236,61210.0,61209.0,0.23218662]
[1719664631503,1.361328,61210.0,61209.0,0.23218662]
[1719664631711,0.673786,61210.0,61209.0,0.441]
[1719664632059,0.673786,61210.0,61209.0,0.45218662]
[1719664633201,0.673786,61210.0,61209.0,0.23218662]
[1719664633835,0.673786,61210.0,61209.0,0.43218662]
[1719664634032,0.673786,61210.0,61209.0,0.45218662]
[1719664634657,0.673786,61210.0,61209.0,0.43218662]
[1719664635117,0.673786,61210.0,61209.0,0.23218662]
[1719664635284,0.673786,61210.0,61209.0,0.45218662]
[1719664636728,0.673786,61210.0,61209.0,0.43218662]
[1719664637161,0.673786,61210.0,61209.0,0.45218662]
[1719664640221,0.674626,61210.0,61209.0,0.45218662]
[1719664640460,0.674626,61210.0,61209.0,0.23218662]
[1719664640761,0.674626,61210.0,61209.0,0.45218662]
[1719664641284,0.674626,61210.0,61209.0,0.23218662]
[1719664641485,0.674626,61210.0,61209.0,0.45218662]
[1719664645795,0.674626,61210.0,61209.0,0.4497092]
[1719664645998,0.674626,61210.0,61209.0,0.44504341]
[1719664646562,0.674626,61210.0,61209.0,0.42504341]
[1719664646688,0.674626,61210.0,61209.0,0.44504341]
[1719664646889,0.674626,61210.0,61209.0,0.42504341]
[1719664647090,0.674626,61210.0,61209.0,0.44504341]
[1719664647299,0.674626,61210.0,61209.0,0.22504341]
[1719664647494,0.674626,61210.0,61209.0,0.42504341]
[1719664648318,0.674626,61210.0,61209.0,0.44504341]
[1719664648520,0.674626,61210.0,61209.0,0.42504341]
[1719664649644,0.674626,61210.0,61209.0,0.44504341]
[1719664650269,0.674626,61210.0,61209.0,0.42504341]
[1719664651681,0.674626,61210.0,61209.0,0.44504341]
[1719664651882,0.674626,61210.0,61209.0,0.22504341]
[1719664652025,0.674626,61210.0,61209.0,0.42504341]
[1719664652227,0.674626,61210.0,61209.0,0.22504341]
[1719664652670,0.674626,61210.0,61209.0,0.42504341]
[1719664653741,0.674626,61210.0,61209.0,0.44504341]
[1719664654525,0.674626,61210.0,61209.0,0.42504341]
[1719664654730,0.674626,61210.0,61209.0,0.44504341]
[1719664654988,0.674626,61210.0,61209.0,0.42504341]
[1719664655591,0.73962656,61210.0,61209.0,0.44504341]
[1719664656131,0.73962656,61210.0,61209.0,0.42504341]
[1719664656330,0.73962656,61210.0,61209.0,0.44504341]
[1719664656538,0.73962656,61210.0,61209.0,0.42504341]
[1719664656945,0.73962656,61210.0,61209.0,0.44504341]
[1719664657142,0.73962656,61210.0,61209.0,0.42504341]
[1719664657343,0.73962656,61210.0,61209.0,0.44504341]
[1719664657547,0.73962656,61210.0,61209.0,0.13178662]
[1719664658536,0.73962656,61210.0,61209.0,0.33178662]
[1719664658783,0.73962656,61210.0,61209.0,0.13178662]
[1719664658962,0.73962656,61210.0,61209.0,0.01118662]
[1719664659361,0.73962656,61210.0,61208.0,0.5801599]
[1719664659690,0.14914056,61210.0,61209.0,0.01118757]
[1719664659884,0.08414,61210.0,61208.0,0.5801599]
[1719664660091,1.459936,61209.0,61208.0,0.5801599]
[1719664660296,1.534936,61209.0,61208.0,0.1801599]
[1719664660919,1.534936,61209.0,61208.0,0.18009686]
[1719664661694,1.6214436,61209.0,61208.0,0.18009686]
[1719664662399,1.461936,61209.0,61208.0,0.18009686]
[1719664662608,1.463936,61209.0,61208.0,0.18009686]
[1719664663336,1.540236,61209.0,61208.0,0.61128733]
[1719664663536,1.540236,61209.0,61208.0,0.84078733]
[1719664664549,1.237137,61209.0,61208.0,0.62078733]
[1719664664769,1.237137,61209.0,61208.0,0.84078733]
[1719664671411,1.224381,61209.0,61208.0,0.84078733]
[1719664671975,1.341381,61209.0,61208.0,0.84078733]
[1719664672552,1.341381,61209.0,61208.0,0.66155143]
[1719664672755,1.341381,61209.0,61208.0,0.83442079]
[1719664673352,1.341381,61209.0,61208.0,0.81442079]
[1719664679212,1.08723024,61209.0,61208.0,0.81442079]
[1719664679579,1.062257,61209.0,61208.0,0.83442079]
[1719664682027,1.062257,61209.0,61208.0,0.65518489]
[1719664682202,1.062257,61209.0,61208.0,0.83442079]
[1719664684234,0.00084,61210.0,61209.0,0.83173032]
[1719664684433,0.00084,61210.0,61209.0,1.0170693]
[1719664684434,0.07714,61210.0,61209.0,1.0170693]
[1719664684746,0.07714,61210.0,61209.0,0.79827571]
[1719664684948,0.07714,61210.0,61209.0,1.02827571]
[1719664685145,0.07714,61210.0,61209.0,0.79827571]
[1719664686157,0.07814,61210.0,61209.0,0.80727571]
[1719664686359,0.07914,61210.0,61209.0,0.81627571]
[1719664686588,0.07914,61210.0,61209.0,1.04627571]
[1719664687224,0.07914,61210.0,61209.0,1.18627363]
[1719664688346,0.00284,61210.0,61209.0,1.35867363]
[1719664688561,0.4877641,61246.0,61219.0,0.448]
[1719664688562,0.0763,61234.0,61219.0,0.448]
[1719664688806,0.0763,61234.0,61219.0,0.6272359]
[1719664688807,0.296479,61220.0,61219.0,0.6272359]
[1719664689016,0.372779,61220.0,61219.0,0.70213523]
[1719664689857,0.372779,61220.0,61219.0,0.70613523]
[1719664690925,0.372779,61220.0,61219.0,0.83690606]
[1719664691717,0.372779,61220.0,61219.0,0.58890606]
[1719664691916,0.372779,61220.0,61219.0,0.38890606]
[1719664692317,0.372779,61220.0,61219.0,0.38490606]
[1719664692535,0.372779,61220.0,61219.0,0.38790606]
[1719664693116,0.372779,61220.0,61219.0,0.19041164]
[1719664694117,0.53511798,61220.0,61219.0,0.19041164]
[1719664694320,0.53511798,61220.0,61219.0,0.01047729]
[1719664694321,0.65024988,61220.0,61219.0,0.01047729]
[1719664694479,0.65024988,61220.0,61219.0,0.00982265]
[1719664694685,0.60581798,61220.0,61219.0,0.00920874]
[1719664694909,0.60581798,61220.0,61219.0,0.00986651]
[1719664695075,0.60581798,61220.0,61213.0,0.19449442]